bitfinex-derivatives/quotes_BTCF0:USTF0_20240902
["timestamp","ask_amount","ask_price","bid_price","bid_amount"]
[1725252929428,0.26948934,57530.0,57529.0,0.141841]
[1725252930225,0.18353195,57530.0,57529.0,0.141841]
[1725252930620,0.14949084,57535.0,57529.0,0.141841]
[1725252930621,0.19643504,57534.0,57529.0,0.141841]
[1725252930821,0.19643504,57534.0,57530.0,0.11279361]
[1725252931025,0.04616085,57535.0,57530.0,0.11279361]
[1725252931332,0.19643504,57534.0,57531.0,0.060839]
[1725252932023,0.19643504,57534.0,57532.0,0.060838]
[1725252932920,0.27643504,57534.0,57532.0,0.060838]
[1725252933619,0.060838,57532.0,57531.0,0.05295361]
[1725252933826,0.141238,57532.0,57531.0,0.001]
[1725252934125,1.49228464,57532.0,57531.0,0.001]
[1725252934529,1.49228464,57532.0,57521.0,0.05195361]
[1725252934530,1.35140664,57532.0,57521.0,0.05195361]
[1725252934717,0.08,57525.0,57521.0,0.05195361]
[1725252935121,0.18691822,57524.0,57521.0,0.05195361]
[1725252935321,0.18591822,57524.0,57522.0,0.05195361]
[1725252935557,1.35663822,57524.0,57520.0,0.05195361]
[1725252935743,1.46248522,57524.0,57520.0,0.05195361]
[1725252936032,1.46248522,57524.0,57519.0,0.05195361]
[1725252936723,1.54248522,57524.0,57518.0,0.05195361]
[1725252937434,1.54248522,57524.0,57519.0,0.05195361]
[1725252937631,1.61124781,57524.0,57519.0,0.05195361]
[1725252937827,1.61124781,57524.0,57523.0,0.00126085]
[1725252938226,1.54248522,57524.0,57523.0,0.00126085]
[1725252938425,1.61610838,57524.0,57523.0,0.00026085]
[1725252938629,1.61910838,57524.0,57523.0,0.00126085]
[1725252940222,1.97990838,57524.0,57523.0,0.00126085]
[1725252941535,1.98030838,57524.0,57523.0,0.00126085]
[1725252941731,1.90854579,57524.0,57523.0,0.00026085]
[1725252942035,1.98030838,57524.0,57523.0,0.00126085]
[1725252942239,1.98030838,57524.0,57523.0,0.00166085]
[1725252942425,1.91154579,57524.0,57523.0,0.00166085]
[1725252942624,1.98030838,57524.0,57523.0,0.00166085]
[1725252942826,1.91154579,57524.0,57523.0,0.00166085]
[1725252943126,1.98030838,57524.0,57523.0,0.00166085]
[1725252943524,1.91154579,57524.0,57523.0,0.00166085]
[1725252944730,1.91054579,57524.0,57523.0,0.00166085]
[1725252945534,1.91054579,57524.0,57515.0,0.05195361]
[1725252945535,0.060855,57516.0,57515.0,0.05195361]
[1725252945739,0.060856,57515.0,57509.0,0.060862]
[1725252945936,0.08,57512.0,57509.0,0.060862]
[1725252946124,0.0004,57510.0,57509.0,0.060862]
[1725252946329,0.18556465,57511.0,57509.0,0.060862]
[1725252946526,0.18556465,57510.0,57509.0,0.060862]
[1725252946731,0.08,57512.0,57509.0,0.060862]
[1725252946934,0.19822585,57511.0,57509.0,0.060862]
[1725252947132,0.08,57512.0,57509.0,0.060862]
[1725252947327,0.08,57512.0,57509.0,0.061862]
[1725252947627,0.19822585,57511.0,57509.0,0.061862]
[1725252948232,0.20122585,57511.0,57509.0,0.061862]
[1725252948438,0.08,57510.0,57509.0,0.061862]
[1725252948835,0.27825978,57510.0,57509.0,0.061862]
[1725252950635,0.19825978,57510.0,57509.0,0.060862]
[1725252950834,0.20125978,57510.0,57509.0,0.061862]
[1725252951032,0.003,57510.0,57509.0,0.061862]
[1725252951233,0.19409602,57510.0,57509.0,0.061862]
[1725252953737,0.27409602,57510.0,57509.0,0.061862]
[1725252956442,0.19409602,57510.0,57509.0,0.061862]
[1725252959442,0.19409602,57510.0,57509.0,0.13129028]
[1725252959647,0.19409602,57510.0,57509.0,0.061862]
[1725252960339,0.19409602,57510.0,57509.0,0.13129028]
[1725252961443,0.19409602,57510.0,57509.0,0.061862]
[1725252966877,0.27409602,57510.0,57509.0,0.061862]
[1725252968769,0.30228469,57510.0,57509.0,0.061862]
[1725252968974,0.30228465,57510.0,57509.0,0.061862]
[1725252970174,0.22228465,57510.0,57509.0,0.061862]
[1725252970379,0.19409602,57510.0,57509.0,0.061862]
[1725252970581,0.2222839,57510.0,57509.0,0.061862]
[1725252972686,0.2222839,57510.0,57509.0,0.001]
[1725252972687,1.4239239,57510.0,57509.0,0.001]
[1725252972985,0.060867,57505.0,57504.0,0.00026085]
[1725252973275,0.56565752,57505.0,57504.0,0.00026085]
[1725252973481,1.94389914,57505.0,57504.0,0.00026085]
[1725252973677,1.34389914,57505.0,57504.0,0.00026085]
[1725252973877,1.94389914,57505.0,57504.0,0.00026085]
[1725252974277,1.94689914,57505.0,57504.0,0.00026085]
[1725252974477,0.060876,57497.0,57491.0,0.0495]
[1725252974782,0.0004,57492.0,57491.0,0.0495]
[1725252975104,0.19731777,57492.0,57491.0,0.0495]
[1725252975985,0.00026085,57497.0,57496.0,0.060876]
[1725252976182,0.00026085,57497.0,57496.0,0.501676]
[1725252976381,0.18426384,57497.0,57496.0,0.501676]
[1725252976770,0.18426384,57497.0,57496.0,0.50847533]
[1725252976986,0.18426384,57497.0,57496.0,0.060876]
[1725252977176,0.19126384,57497.0,57496.0,0.061876]
[1725252977384,0.19126384,57497.0,57496.0,0.13129144]
[1725252977869,0.19126384,57497.0,57496.0,0.07041544]
[1725252978894,0.19126384,57497.0,57496.0,0.081]
[1725252979073,0.19126384,57497.0,57496.0,0.15040144]
[1725252979376,0.19126384,57497.0,57496.0,0.081]
[1725252980782,0.007,57497.0,57496.0,0.081]
[1725252980984,0.007,57497.0,57496.0,0.21350389]
[1725252982785,0.007,57497.0,57496.0,0.30023575]
[1725252982987,0.007,57497.0,57496.0,0.08773186]
[1725252983285,0.007,57497.0,57496.0,0.081]
[1725252984386,0.007,57497.0,57496.0,0.001]
[1725252984574,0.25439342,57497.0,57496.0,0.001]
[1725252985178,0.25439342,57497.0,57496.0,0.07039067]
[1725252986089,0.25439342,57497.0,57496.0,0.001]
[1725252986790,0.25439342,57497.0,57496.0,0.081]
[1725252986988,0.007,57497.0,57496.0,0.081]
[1725252987494,0.007,57497.0,57496.0,0.663636]
[1725252988284,0.007,57497.0,57496.0,0.141876]
[1725252989087,0.007,57497.0,57496.0,0.502676]
[1725252994079,0.067875,57497.0,57496.0,0.001]
[1725252994405,0.25987398,57497.0,57496.0,0.001]
[1725252996584,0.25987398,57497.0,57496.0,0.081]
[1725252998895,0.3287564,57497.0,57496.0,0.081]
[1725252999286,0.3287564,57497.0,57496.0,0.4418]
[1725252999287,0.19899898,57497.0,57496.0,0.4418]
[1725252999491,0.007,57497.0,57496.0,0.55475102]
[1725252999691,0.007,57497.0,57496.0,0.502676]
[1725253000894,0.007,57497.0,57496.0,0.57209182]
[1725253001093,0.007,57497.0,57496.0,0.502676]
[1725253002205,0.00026085,57502.0,57498.0,0.060874]
[1725253002401,0.06914327,57502.0,57501.0,0.0804]
[1725253002701,0.25197965,57502.0,57501.0,0.0804]
[1725253003898,0.25197965,57502.0,57501.0,0.08537968]
[1725253004902,0.25197965,57502.0,57501.0,0.0004]
[1725253005106,0.26397965,57502.0,57501.0,0.0014]
[1725253005295,0.25596723,57502.0,57501.0,0.0014]
[1725253005493,0.33596723,57502.0,57501.0,0.0014]
[1725253006008,0.25596723,57502.0,57501.0,0.0014]
[1725253010411,0.19509723,57502.0,57501.0,0.0014]
[1725253011809,0.19509723,57502.0,57501.0,0.3622]
[1725253014910,0.19509723,57502.0,57501.0,0.41433006]
[1725253015103,0.19509723,57502.0,57501.0,0.3622]
[1725253015302,0.19509723,57502.0,57501.0,0.0014]
[1725253017403,0.19509723,57502.0,57501.0,0.05353006]
[1725253019306,0.19509723,57502.0,57501.0,0.0014]
[1725253020905,0.19509723,57502.0,57501.0,0.07090775]
[1725253021212,0.19509723,57502.0,57501.0,0.0014]
[1725253021410,0.26406682,57502.0,57501.0,0.0014]
[1725253021808,0.25596723,57502.0,57501.0,0.0014]
[1725253022017,0.32493682,57502.0,57501.0,0.0014]
[1725253022198,0.68573682,57502.0,57501.0,0.0014]
[1725253022606,0.69676723,57502.0,57501.0,0.0014]
[1725253023312,0.76575054,57502.0,57501.0,0.05353821]
[1725253023708,0.69676723,57502.0,57501.0,0.0014]
[1725253025609,1.87935723,57502.0,57501.0,0.05213872]
[1725253025802,0.060877,57495.0,57494.0,0.06994775]
[1725253026022,0.57066311,57495.0,57494.0,0.00044]
[1725253026312,1.28356205,57495.0,57494.0,0.05256979]
[1725253026514,1.28396205,57495.0,57494.0,0.05256979]
[1725253026809,1.28396205,57495.0,57494.0,0.00044]
[1725253027315,1.28391723,57495.0,57494.0,0.00044]
[1725253028016,1.28791723,57495.0,57494.0,0.00044]
[1725253028208,0.76611723,57495.0,57494.0,0.00044]
[1725253028409,0.69717594,57495.0,57494.0,0.00044]
[1725253029123,0.70212142,57495.0,57494.0,0.00044]
[1725253032509,0.76299842,57495.0,57494.0,0.00044]
[1725253034211,0.40219842,57495.0,57494.0,0.00044]
[1725253035104,0.40219842,57495.0,57494.0,0.10036979]
[1725253035625,0.40219842,57495.0,57494.0,0.04824]
[1725253038921,0.40219842,57495.0,57494.0,0.00044]
[1725253039814,0.32219842,57495.0,57494.0,0.00044]
[1725253040017,0.40219842,57495.0,57494.0,0.00044]
[1725253044923,0.32219842,57495.0,57494.0,0.00044]
[1725253045121,0.26132142,57495.0,57494.0,0.00044]
[1725253048419,0.26132142,57495.0,57494.0,0.06994775]
[1725253048627,0.26132142,57495.0,57494.0,0.00044]
[1725253049428,0.20044442,57495.0,57494.0,0.08044]
[1725253050930,0.20044442,57495.0,57494.0,0.141318]
[1725253053922,0.0044,57495.0,57494.0,0.36057763]
[1725253054132,0.0044,57495.0,57494.0,0.36057455]
[1725253054330,0.0044,57495.0,57494.0,0.36057333]
[1725253054720,0.0044,57495.0,57494.0,0.36057239]
[1725253055530,0.00026085,57502.0,57494.0,1.75644053]
[1725253055725,0.00026085,57502.0,57501.0,0.08]
[1725253056127,0.18858223,57502.0,57501.0,0.08]
[1725253057032,0.19258223,57502.0,57501.0,0.08]
[1725253057628,0.18858223,57502.0,57501.0,0.081]
[1725253057831,0.20058223,57502.0,57501.0,0.081]
[1725253058336,0.20058223,57502.0,57501.0,0.15044044]
[1725253058932,0.22877524,57502.0,57501.0,0.081]
[1725253059233,0.33210132,57502.0,57501.0,0.141871]
[1725253061633,0.22877524,57502.0,57501.0,0.141871]
[1725253061830,0.33210132,57502.0,57501.0,0.141871]
[1725253062044,0.33210132,57502.0,57501.0,0.14687915]
[1725253062733,0.22877524,57502.0,57501.0,0.14687915]
[1725253065041,0.04045386,57502.0,57501.0,0.66859915]
[1725253065443,0.04045386,57502.0,57501.0,0.14687915]
[1725253065943,0.01226085,57502.0,57501.0,0.14687915]
[1725253066339,0.01226085,57502.0,57501.0,0.50767915]
[1725253068453,0.21270421,57502.0,57501.0,0.502671]
[1725253070055,0.21270421,57502.0,57501.0,0.57211144]
[1725253070445,0.01226085,57502.0,57501.0,0.57211144]
[1725253072248,0.01226085,57502.0,57501.0,0.502671]
[1725253072646,0.01226085,57502.0,57501.0,0.57209158]
[1725253072954,0.21168278,57502.0,57501.0,0.502671]
[1725253073360,0.21168278,57502.0,57501.0,0.57209158]
[1725253074055,0.21168278,57502.0,57501.0,0.502671]
[1725253077455,0.21168278,57502.0,57501.0,0.141871]
[1725253078055,0.21168278,57502.0,57501.0,0.57209158]
[1725253079551,0.21168278,57502.0,57501.0,0.49209158]
[1725253079746,0.21168278,57502.0,57501.0,0.001]
[1725253079747,0.34140408,57502.0,57501.0,0.001]
[1725253079945,1.75507278,57502.0,57501.0,0.001]
[1725253080147,1.88507278,57502.0,57501.0,0.001]
[1725253080459,1.1832706,57502.0,57501.0,0.001]
[1725253081147,1.15507278,57502.0,57501.0,0.001]
[1725253083952,0.63335278,57502.0,57501.0,0.001]
[1725253084352,0.70227623,57502.0,57501.0,0.001]
[1725253084651,0.70227623,57502.0,57501.0,0.053125]
[1725253084652,0.63335278,57502.0,57501.0,0.053125]
[1725253086150,0.63335278,57502.0,57501.0,0.001]
[1725253086453,0.63335278,57502.0,57501.0,0.053125]
[1725253087154,0.63335278,57502.0,57501.0,0.001]
[1725253089860,0.63335278,57502.0,57501.0,0.05310382]
[1725253090754,0.27255278,57502.0,57501.0,0.05310382]
[1725253094860,0.27255278,57502.0,57501.0,0.001]
[1725253095358,0.34147623,57502.0,57501.0,0.001]
[1725253096060,0.27255278,57502.0,57501.0,0.001]
[1725253098760,0.34147623,57502.0,57501.0,0.05311017]
[1725253098951,0.34147623,57502.0,57501.0,0.001]
[1725253098952,0.27255278,57502.0,57501.0,0.001]
[1725253101447,0.33342278,57502.0,57501.0,0.001]
[1725253102455,0.41342278,57502.0,57501.0,0.001]
[1725253104865,0.49958814,57502.0,57501.0,0.001]
[1725253105064,1.02130814,57502.0,57501.0,0.001]
[1725253105857,0.93514278,57502.0,57501.0,0.001]
[1725253106265,1.02130814,57502.0,57501.0,0.001]
[1725253106867,1.12130814,57502.0,57501.0,0.001]
[1725253107370,1.03514278,57502.0,57501.0,0.001]
[1725253107570,1.12132506,57502.0,57501.0,0.001]
[1725253107766,1.03514278,57502.0,57501.0,0.001]
[1725253108264,0.54162204,57502.0,57501.0,0.001]
[1725253108478,1.06334204,57502.0,57501.0,0.001]
[1725253109163,0.54162204,57502.0,57501.0,0.001]
[1725253109368,1.06334204,57502.0,57501.0,0.001]
[1725253109571,0.54162204,57502.0,57501.0,0.001]
[1725253109771,1.06334204,57502.0,57501.0,0.001]
[1725253109974,0.54162204,57502.0,57501.0,0.001]
[1725253110268,1.06334204,57502.0,57501.0,0.001]
[1725253110468,0.54162204,57502.0,57501.0,0.001]
[1725253110769,1.06334204,57502.0,57501.0,0.001]
[1725253110965,0.90242204,57502.0,57501.0,0.001]
[1725253111370,0.87422278,57502.0,57501.0,0.001]
[1725253111557,1.39594278,57502.0,57501.0,0.001]
[1725253111964,0.87422278,57502.0,57501.0,0.001]
[1725253112165,1.4821482,57502.0,57501.0,0.001]
[1725253112669,1.39594278,57502.0,57501.0,0.001]
[1725253113060,1.99594278,57502.0,57501.0,0.001]
[1725253113260,2.0821523,57502.0,57501.0,0.001]
[1725253114267,1.4821523,57502.0,57501.0,0.001]
[1725253115671,2.0821523,57502.0,57501.0,0.001]
[1725253115868,2.02414174,57502.0,57501.0,0.001]
[1725253116977,1.42414174,57502.0,57501.0,0.001]
[1725253117173,0.90242174,57502.0,57501.0,0.001]
[1725253120871,0.87422278,57502.0,57501.0,0.001]
[1725253121073,0.9024226,57502.0,57501.0,0.001]
[1725253122177,1.2632226,57502.0,57501.0,0.001]
[1725253123665,1.1223526,57502.0,57501.0,0.001]
[1725253123875,1.03328278,57502.0,57501.0,0.001]
[1725253124180,0.93328278,57502.0,57501.0,0.001]
[1725253124380,0.93328278,57502.0,57501.0,0.0479]
[1725253126368,0.96147921,57502.0,57501.0,0.0479]
[1725253128879,0.99507234,57502.0,57501.0,0.0479]
[1725253129285,0.96147921,57502.0,57501.0,0.0479]
[1725253129585,0.99507261,57502.0,57501.0,0.0479]
[1725253129791,0.96147921,57502.0,57501.0,0.0479]
[1725253129985,0.70423755,57502.0,57501.0,0.0479]
[1725253130184,0.60067921,57502.0,57501.0,0.0479]
[1725253130790,0.60067921,57502.0,57501.0,0.108771]
[1725253130985,0.23987921,57502.0,57501.0,0.108771]
[1725253132181,0.23987921,57502.0,57501.0,0.630491]
[1725253132580,0.23987698,57502.0,57501.0,0.630491]
[1725253133376,0.21168278,57502.0,57501.0,0.6999879]
[1725253134288,0.21168278,57502.0,57501.0,0.630491]
[1725253134485,0.21168278,57502.0,57501.0,0.6999879]
[1725253134681,0.21168278,57502.0,57501.0,0.630491]
[1725253134876,0.21168278,57502.0,57501.0,0.6999879]
[1725253135091,0.21168278,57502.0,57501.0,0.630491]
[1725253136279,0.21168278,57502.0,57501.0,0.108771]
[1725253137593,0.01226085,57502.0,57501.0,1.6607879]
[1725253137790,0.01226085,57502.0,57501.0,1.591291]
[1725253138494,0.01226085,57502.0,57501.0,0.991291]
[1725253142705,0.01226085,57502.0,57501.0,1.591291]
[1725253143108,0.08,57508.0,57501.0,0.4087]
[1725253143426,0.08,57508.0,57507.0,0.05243314]
[1725253143713,0.32721474,57508.0,57507.0,0.0524325]
[1725253143914,0.74887874,57508.0,57507.0,0.0004]
[1725253144103,0.79801474,57508.0,57507.0,0.0004]
[1725253144432,0.060869,57503.0,57502.0,0.00026085]
[1725253144711,0.57097053,57503.0,57502.0,0.00026085]
[1725253144923,0.68397912,57503.0,57502.0,0.00026085]
[1725253146810,0.32317912,57503.0,57502.0,0.00126085]
[1725253147213,0.51208065,57503.0,57502.0,0.00126085]
[1725253147721,0.44317912,57503.0,57502.0,0.00126085]
[1725253147910,0.4482002,57503.0,57502.0,0.00126085]
[1725253148416,0.50999281,57503.0,57502.0,0.00126085]
[1725253154414,0.509991,57503.0,57502.0,0.00126085]
[1725253156526,0.4482002,57503.0,57502.0,0.00126085]
[1725253158121,0.51717589,57503.0,57502.0,0.00126085]
[1725253160222,0.4978002,57503.0,57502.0,0.00126085]
[1725253161314,0.56677538,57503.0,57502.0,0.00126085]
[1725253161521,0.56677524,57503.0,57502.0,0.00126085]
[1725253161920,0.4978002,57503.0,57502.0,0.00126085]
[1725253162221,0.56677571,57503.0,57502.0,0.00126085]
[1725253163427,0.52599724,57503.0,57502.0,0.00126085]
[1725253166238,0.88679724,57503.0,57502.0,0.00126085]
[1725253167126,0.08623146,57506.0,57502.0,1.48378085]
[1725253167339,0.00026085,57513.0,57507.0,0.060865]
[1725253167340,0.06898006,57508.0,57507.0,0.060865]
[1725253167527,0.19305735,57510.0,57508.0,0.060864]
[1725253167719,0.06898006,57511.0,57509.0,0.08]
[1725253167921,0.06898006,57511.0,57510.0,0.0004]
[1725253168319,0.26346335,57511.0,57510.0,0.0004]
[1725253168933,0.19448329,57511.0,57510.0,0.0004]
[1725253169134,0.06898006,57512.0,57510.0,1.182902]
[1725253169437,0.00026085,57513.0,57511.0,0.0004]
[1725253169627,0.00026085,57513.0,57512.0,0.0804]
[1725253170231,0.00026085,57513.0,57512.0,0.0004]
[1725253170425,0.34229742,57513.0,57512.0,0.0004]
[1725253170630,0.27331736,57513.0,57512.0,0.0004]
[1725253171332,0.34223912,57513.0,57512.0,0.0004]
[1725253171532,0.27331736,57513.0,57512.0,0.0004]
[1725253171734,0.27331736,57513.0,57512.0,0.0014]
[1725253172032,0.27331736,57513.0,57512.0,0.053474]
[1725253172234,0.27331736,57513.0,57512.0,0.0014]
[1725253173037,0.19331736,57513.0,57512.0,0.0014]
[1725253179936,0.27331736,57513.0,57512.0,0.0014]
[1725253180235,0.79316625,57513.0,57512.0,0.0014]
[1725253181130,1.91480625,57513.0,57512.0,0.0014]
[1725253181536,0.060865,57507.0,57505.0,0.0004]
[1725253181837,0.40688901,57506.0,57505.0,0.0004]
[1725253182044,0.56278901,57506.0,57505.0,0.0004]
[1725253182835,0.56278901,57506.0,57499.0,0.3245]
[1725253182836,0.56178901,57506.0,57499.0,0.3245]
[1725253183039,0.4408,57503.0,57499.0,0.3245]
[1725253183432,0.63870847,57503.0,57499.0,0.3245]
[1725253183634,0.63770847,57503.0,57499.0,0.3245]
[1725253184040,0.66590456,57503.0,57496.0,0.00124]
[1725253184443,0.67590456,57503.0,57502.0,0.00126085]
[1725253185046,0.65381459,57503.0,57502.0,0.00126085]
[1725253186468,0.59590444,57503.0,57502.0,0.00126085]
[1725253186745,0.56770847,57503.0,57502.0,0.00126085]
[1725253187643,0.56870847,57503.0,57502.0,0.00126085]
[1725253198745,0.68259291,57503.0,57502.0,0.00126085]
[1725253198948,0.61370847,57503.0,57502.0,0.00126085]
[1725253199848,0.74343801,57503.0,57502.0,0.00126085]
[1725253200356,0.74344986,57503.0,57502.0,0.00126085]
[1725253200542,0.74344986,57503.0,57497.0,0.05083485]
[1725253200749,0.08,57501.0,57497.0,0.05083485]
[1725253201257,0.3608,57498.0,57496.0,0.00124]
[1725253201650,0.18196303,57497.0,57496.0,0.00124]
[1725253202454,0.30196303,57497.0,57496.0,0.00124]
[1725253203058,0.30696303,57497.0,57496.0,0.00124]
[1725253203951,0.30446303,57497.0,57496.0,0.00124]
[1725253205253,0.18446303,57497.0,57496.0,0.062116]
[1725253207154,0.18446303,57497.0,57496.0,0.00124]
[1725253207352,0.27060936,57497.0,57496.0,0.00124]
[1725253208361,0.27065484,57497.0,57496.0,0.00124]
[1725253208761,0.18446303,57497.0,57496.0,0.00124]
[1725253209361,0.18446303,57497.0,57496.0,0.062116]
[1725253209558,0.25341876,57497.0,57496.0,0.062116]
[1725253210066,0.32533803,57497.0,57496.0,0.00124]
[1725253210260,0.18446303,57497.0,57496.0,0.00124]
[1725253211352,0.18446303,57497.0,57496.0,0.062116]
[1725253214555,0.18446303,57497.0,57496.0,0.21149129]
[1725253214751,0.18446303,57497.0,57496.0,0.142116]
[1725253218062,0.3608,57498.0,57496.0,1.203]
[1725253218266,0.06904857,57508.0,57497.0,1.01505733]
[1725253218466,0.46411895,57521.0,57511.0,0.06086]
[1725253218467,0.06906382,57512.0,57511.0,0.06086]
[1725253218668,0.44711071,57515.0,57510.0,0.06950196]
[1725253218862,0.19717531,57512.0,57506.0,0.06976281]
[1725253219055,0.06906087,57510.0,57508.0,0.060864]
[1725253219361,0.18618084,57509.0,57506.0,0.00026085]
[1725253219966,0.18618084,57509.0,57507.0,0.08]
[1725253220769,0.18618084,57509.0,57508.0,0.060864]
[1725253221973,0.18718084,57509.0,57508.0,0.060864]
[1725253222874,0.18718084,57509.0,57508.0,1.182544]
[1725253222875,0.001,57509.0,57508.0,1.182544]
[1725253224472,0.001,57509.0,57508.0,1.25186438]
[1725253225273,0.001,57509.0,57508.0,0.65186438]
[1725253225578,0.0498,57517.0,57512.0,0.060859]
[1725253225765,0.0498,57517.0,57512.0,0.140859]
[1725253226378,0.0498,57517.0,57512.0,0.060859]
[1725253226669,0.0498,57517.0,57512.0,0.140859]
[1725253227360,0.00526085,57513.0,57512.0,0.141859]
[1725253228582,0.00026085,57513.0,57512.0,0.140859]
[1725253228770,0.00526085,57513.0,57512.0,0.141859]
[1725253229679,0.00526085,57513.0,57512.0,0.14681381]
[1725253231873,0.09157156,57513.0,57512.0,0.14681381]
[1725253232373,0.03344919,57513.0,57512.0,0.14681381]
[1725253232876,0.00526085,57513.0,57512.0,0.14681381]
[1725253233867,0.23429834,57513.0,57512.0,0.001]
[1725253234475,0.20611003,57513.0,57512.0,0.001]
[1725253234781,0.33762005,57513.0,57512.0,0.001]
[1725253235084,0.33262005,57513.0,57507.0,0.421664]
[1725253235277,0.20611003,57513.0,57512.0,0.001]
[1725253235474,0.23430125,57513.0,57512.0,0.001]
[1725253235980,0.22930125,57513.0,57507.0,0.421664]
[1725253236177,0.10225584,57510.0,57507.0,0.421664]
[1725253236482,0.27220821,57509.0,57507.0,0.421664]
[1725253236683,0.02819122,57508.0,57507.0,0.421664]
[1725253236879,0.0484,57509.0,57507.0,0.421664]
[1725253237080,0.19561699,57508.0,57507.0,0.421664]
[1725253237681,0.19561699,57508.0,57507.0,0.060864]
[1725253237881,0.19561699,57508.0,57507.0,0.061864]
[1725253238578,0.2238077,57508.0,57507.0,0.061264]
[1725253238785,0.20161699,57508.0,57507.0,0.062264]
[1725253253989,0.006,57508.0,57507.0,0.062264]
[1725253255095,0.006,57508.0,57507.0,0.13175501]
[1725253255481,0.006,57508.0,57507.0,0.062264]
[1725253255887,0.006,57508.0,57507.0,0.13175866]
[1725253257890,0.006,57508.0,57507.0,0.062264]
[1725253260688,0.20722536,57508.0,57507.0,0.062264]
[1725253260896,0.2762754,57508.0,57507.0,0.13179018]
[1725253261497,0.20722536,57508.0,57507.0,0.13179018]
[1725253261706,0.27630512,57508.0,57507.0,0.13179018]
[1725253261994,0.28130512,57508.0,57507.0,0.13279018]
[1725253262200,0.21222536,57508.0,57507.0,0.13279018]
[1725253262389,0.21222536,57508.0,57507.0,0.0024]
[1725253262592,0.21222536,57508.0,57507.0,0.07195255]
[1725253263498,0.21222536,57508.0,57507.0,0.0024]
[1725253264002,0.26042536,57508.0,57507.0,0.0024]
[1725253264207,0.26042536,57508.0,57507.0,0.07197626]
[1725253264397,0.26042536,57508.0,57507.0,0.07197884]
[1725253265001,0.26042536,57508.0,57507.0,0.0024]
[1725253268903,0.39220185,57508.0,57507.0,0.0024]
[1725253269301,0.39220185,57508.0,57507.0,0.3632]
[1725253269607,0.39229249,57508.0,57507.0,0.0024]
[1725253270008,0.24041601,57508.0,57507.0,0.4432]
[1725253270196,0.24041601,57508.0,57507.0,0.4921]
[1725253270197,0.097384,57508.0,57507.0,0.4921]
[1725253270396,0.011,57508.0,57507.0,0.552965]
[1725253270598,0.09738507,57508.0,57507.0,0.552965]
[1725253271734,0.011,57508.0,57507.0,0.552965]
[1725253272005,0.006,57508.0,57507.0,0.551965]
[1725253272210,0.011,57508.0,57507.0,0.504065]
[1725253272502,0.03318999,57508.0,57507.0,0.503065]
[1725253272695,0.03918999,57508.0,57507.0,0.504065]
[1725253273297,0.03318999,57508.0,57507.0,0.142265]
[1725253273508,0.03918999,57508.0,57507.0,0.143265]
[1725253273696,0.03418999,57508.0,57507.0,0.142265]
[1725253273897,0.03918999,57508.0,57507.0,0.143265]
[1725253275104,0.03918999,57508.0,57507.0,0.0024]
[1725253275296,0.03919057,57508.0,57507.0,0.0024]
[1725253275795,0.03319057,57508.0,57507.0,0.0014]
[1725253275995,0.009,57508.0,57507.0,0.0024]
[1725253278300,0.009,57508.0,57507.0,0.1957597]
[1725253278499,0.009,57508.0,57507.0,1.0782397]
[1725253278701,0.00026085,57513.0,57512.0,0.060859]
[1725253278903,0.00026085,57513.0,57512.0,0.6341409]
[1725253279211,0.00026085,57513.0,57512.0,1.7561809]
[1725253279420,0.06910766,57523.0,57512.0,1.6953219]
[1725253279713,0.11500766,57527.0,57522.0,0.0004]
[1725253280011,0.11500766,57527.0,57526.0,0.0804]
[1725253281206,0.0459,57527.0,57526.0,0.0804]
[1725253281707,0.25950627,57527.0,57526.0,0.0814]
[1725253281907,0.30770627,57527.0,57526.0,0.0814]
[1725253282302,0.30770627,57527.0,57526.0,0.0014]
[1725253282908,0.30770627,57527.0,57526.0,0.0024]
[1725253284401,0.37681393,57527.0,57526.0,0.0024]
[1725253284807,0.30770627,57527.0,57526.0,0.0024]
[1725253290917,0.43921578,57527.0,57526.0,0.0024]
[1725253293211,0.33588945,57527.0,57526.0,0.0024]
[1725253293517,0.3309297,57527.0,57526.0,0.0024]
[1725253295934,0.3309296,57527.0,57526.0,0.0024]
[1725253296105,0.43426593,57527.0,57526.0,0.143245]
[1725253296310,0.43427701,57527.0,57526.0,0.143245]
[1725253297305,0.34017701,57527.0,57526.0,0.14818622]
[1725253297520,0.02918308,57527.0,57526.0,0.14818622]
[1725253298914,0.001,57527.0,57526.0,0.14818622]
[1725253301517,0.002,57527.0,57526.0,0.14818622]
[1725253301912,0.001,57527.0,57526.0,0.14718622]
[1725253302226,0.002,57527.0,57526.0,0.14818622]
[1725253305923,0.03017882,57527.0,57526.0,0.14818622]
[1725253307426,0.03017882,57527.0,57526.0,1.26966622]
[1725253309524,0.13352623,57527.0,57526.0,0.66966622]
[1725253310032,0.13352623,57527.0,57526.0,1.26966622]
[1725253310033,0.03017882,57527.0,57526.0,1.26966622]
[1725253310224,0.03017882,57527.0,57526.0,0.66966622]
[1725253310524,0.03017882,57527.0,57526.0,1.26966622]
[1725253310945,0.03017882,57527.0,57526.0,0.66966622]
[1725253311126,0.13352623,57527.0,57526.0,1.18966622]
[1725253311350,0.13352623,57527.0,57526.0,0.66966622]
[1725253312831,0.13352623,57527.0,57526.0,1.26966622]
[1725253313131,0.13352623,57527.0,57526.0,0.66966622]
[1725253313328,0.13352623,57527.0,57526.0,1.26966622]
[1725253313521,0.13352623,57527.0,57526.0,0.66966622]
[1725253313928,0.002,57527.0,57526.0,1.26966622]
[1725253315735,0.002,57527.0,57526.0,0.14818622]
[1725253318739,0.002,57527.0,57526.0,0.50898622]
[1725253321225,0.03017889,57527.0,57526.0,0.50898622]
[1725253321632,0.03017889,57527.0,57526.0,0.42898622]
[1725253321832,0.03017889,57527.0,57526.0,0.50898622]
[1725253322238,0.03017993,57527.0,57526.0,0.50898622]
[1725253325535,0.13352734,57527.0,57526.0,0.42898622]
[1725253325740,0.17872734,57527.0,57526.0,0.50898622]
[1725253326437,0.07537993,57527.0,57526.0,0.50898622]
[1725253326832,0.07537966,57527.0,57526.0,0.50898622]
[1725253329033,0.0472,57527.0,57526.0,0.64143356]
[1725253330227,0.0472,57527.0,57526.0,0.50058856]
[1725253330427,0.0472,57527.0,57526.0,0.0024]
[1725253330428,1.590324,57527.0,57526.0,0.0024]
[1725253330655,0.060854,57518.0,57516.0,0.08693283]